[Event "4NCL Div 2 2024-25"]
[Site "England"]
[Date "2024.11.24"]
[Round "2.1"]
[White "Bowcott-Terry, Finlay"]
[Black "Hobson, Kenneth"]
[Result "1-0"]
[Annotator "RC"]
[ECO "C55"]
[WhiteElo "2168"]
[BlackElo "2152"]
[PlyCount "81"]
[EventDate "2024.11.23"]
[EventType "team-tourn"]
[EventCountry "ENG"]
[SourceTitle "playchess.com"]
[Source "ChessBase"]
[SourceQuality "1"]
[TimeControl "40/6000+30:3000+30"]

1. e4 {[%emt 0:10:01]} e5 {[%emt 0:10:06]} 2. Nf3 {[%emt 0:00:02]} Nc6 {[%emt 0:00:19]} 3. Bc4 {[%emt 0:00:06]} Nf6 {[%emt 0:00:24]} 4. O-O {[%emt 0:00:23]} Nxe4 {[%emt 0:01:09]} 5. Nc3 {[%emt 0:00:01]} Nxc3 {[%emt 0:00:21]} 6. dxc3 {[%emt 0:00:01]} f6 {[%emt 0:00:47]} 7. b4 {[%emt 0:00:08]} d6 {[%emt 0:00:56]} 8. a4 {[%emt 1:33:48]} Qe7 {[%emt 0:01:30]} 9. a5 {[%emt 0:00:00]} Be6 {[%emt 0:01:20]} 10. Bd5 {[%emt 0:00:00]} Bxd5 {[%emt 0:01:24]} 11. Qxd5 {[%emt 0:00:00]} a6 {[%emt 0:00:19]} 12. b5 {[%emt 0:00:00]} Nd8 {[%emt 0:02:04]} 13. Nd2 {[%emt 0:00:00]} Qf7 {[%emt 0:07:53]} 14. Qd3 {[%emt 0:00:00]} Ne6 {[%emt 0:04:04]} 15. Qf3 {[%emt 0:00:00]} Nd8 {[%emt 0:08:30]} 16. Qe2 {[%emt 0:00:00]} Be7 {[%emt 0:03:19]} 17. f4 {[%emt 0:00:00]} Qd5 {[%emt 0:06:08]} 18. Rb1 {[%emt 0:00:00]} O-O {[%emt 0:05:20]} 19. c4 {[%emt 0:00:00]} Qe6 {[%emt 0:04:47]} 20. b6 {[%emt 0:00:00]} c5 {[%emt 0:02:50]} 21. f5 {[%emt 0:00:00]} Qf7 {[%emt 0:02:01]} 22. Rb3 {[%emt 0:00:00]} Nc6 {[%emt 0:03:53]} 23. Rg3 {[%emt 0:00:00]} Rfd8 {[%emt 0:04:08]} 24. Ne4 {[%emt 0:00:00]} Kh8 {[%emt 0:03:55]} 25. Nc3 {[%emt 0:00:00]} Rac8 {[%emt 0:12:32]} 26. Nd5 {[%emt 0:00:00]} Nxa5 {[%emt 0:02:57]} 27. Qg4 {[%emt 0:00:00]} Bf8 {[%emt 0:01:34]} 28. Rh3 {[%emt 0:00:00]} h6 {[%emt 0:03:48]} 29. Rh4 {[%emt 0:00:00]} Kh7 {[%emt 0:02:37]} 30. Rf3 {[%emt 0:00:00]} e4 {[%emt 0:05:46]} 31. Rg3 {[%emt 0:00:00]} Kh8 {[%emt 0:01:09]} 32. Nf4 {[%emt 0:00:00]} Nxc4 {[%emt 0:00:37]} 33. Ng6+ {[%emt 0:00:00]} Kg8 {[%emt 0:00:05]} 34. Bxh6 {[%emt 0:00:00]} gxh6 {[%emt 0:01:54]} 35. Qe2 {[%emt 0:00:00]} Bg7 {[%emt 0:03:39]} 36. Nf4 {[%emt 0:00:00]} d5 {[%emt 0:02:48]} 37. Ne6 {[%emt 0:00:00]} Ne5 {[%emt 0:00:37]} 38. Rxh6 {[%emt 0:00:00]} Rd6 {[%emt 0:01:19]} 39. Qh5 {[%emt 0:00:00]} Ng6 {[%emt 0:00:37]} 40. Rgxg6 {[%emt 0:00:00]} Rxe6 {[%emt 0:00:15]} 41. Rh8# {[%emt 0:28:23]} 1-0

[Event "4NCL Div 2 2024-25"]
[Site "England"]
[Date "2024.11.24"]
[Round "2.2"]
[White "Khoury, Theo"]
[Black "Shearsby, Jude"]
[Result "0-1"]
[Annotator "RC"]
[ECO "B76"]
[WhiteElo "2194"]
[BlackElo "2192"]
[PlyCount "70"]
[EventDate "2024.11.23"]
[EventType "team-tourn"]
[EventCountry "ENG"]
[SourceTitle "playchess.com"]
[Source "ChessBase"]
[SourceQuality "1"]
[TimeControl "40/6000+30:3000+30"]

1. e4 {[%emt 0:10:02]} c5 {[%emt 0:12:22]} 2. Nf3 {[%emt 0:00:11]} d6 {[%emt 0:00:05]} 3. d4 {[%emt 0:00:16]} cxd4 {[%emt 0:00:12]} 4. Nxd4 {[%emt 0:00:05]} Nf6 {[%emt 0:00:05]} 5. Nc3 {[%emt 0:00:06]} g6 {[%emt 0:00:03]} 6. Be3 {[%emt 0:00:17]} Bg7 {[%emt 0:00:10]} 7. f3 {[%emt 0:00:04]} O-O {[%emt 0:00:08]} 8. Qd2 {[%emt 0:00:05]} Nc6 {[%emt 0:00:04]} 9. O-O-O {[%emt 0:00:05]} d5 {[%emt 0:00:03]} 10. exd5 {[%emt 0:00:04]} Nxd5 {[%emt 0:00:08]} 11. Nxc6 {[%emt 0:00:04]} bxc6 {[%emt 0:00:04]} 12. Bd4 {[%emt 0:00:04]} e5 {[%emt 0:00:04]} 13. Bc5 {[%emt 0:00:03]} Be6 {[%emt 0:00:01]} 14. Ne4 {[%emt 0:00:07]} Re8 {[%emt 0:00:05]} 15. h4 {[%emt 0:00:02]} h5 {[%emt 0:00:03]} 16. Bc4 {[%emt 0:09:05]} Nf4 {[%emt 0:00:11]} 17. Bxe6 {[%emt 0:00:38]} Nxe6 {[%emt 0:00:05]} 18. Qxd8 {[%emt 0:14:13]} Rexd8 {[%emt 0:00:28]} 19. Be7 {[%emt 0:02:31]} Bh6+ {[%emt 0:00:05]} 20. Kb1 {[%emt 0:00:08]} Rxd1+ {[%emt 0:00:02]} 21. Rxd1 {[%emt 0:00:09]} f5 {[%emt 0:00:01]} 22. Ng5 {[%emt 0:08:34]} Re8 {[%emt 0:00:12]} 23. Bf6 {[%emt 0:01:09]} Bxg5 {[%emt 0:03:49]} 24. hxg5 {[%emt 0:00:06]} Nf4 {[%emt 0:19:29]} 25. g3 {[%emt 0:10:49]} Nd5 {[%emt 0:01:28]} 26. c4 {[%emt 0:00:13]} Nxf6 {[%emt 0:00:12]} 27. gxf6 {[%emt 0:00:05]} Kf7 {[%emt 0:00:10]} 28. Rd7+ {[%emt 0:00:47]} Kxf6 {[%emt 0:00:04]} 29. Rxa7 {[%emt 0:00:04]} f4 {[%emt 0:03:32]} 30. gxf4 {[%emt 0:08:59]} exf4 {[%emt 0:00:09]} 31. b4 {[%emt 0:00:23]} g5 {[%emt 0:01:08]} 32. Rh7 {[%emt 0:03:24]} g4 {[%emt 0:01:14]} 33. Rxh5 {[%emt 0:11:21]} gxf3 {[%emt 0:00:24]} 34. Rh2 {[%emt 0:00:26]} Re2 {[%emt 0:00:11]} 35. Rh3 {[%emt 0:00:02]} f2 {[%emt 0:00:13]} 0-1

[Event "4NCL Div 2 2024-25"]
[Site "England"]
[Date "2024.11.24"]
[Round "2.3"]
[White "Stepanyan, Henrik"]
[Black "Manley, Jon P"]
[Result "1/2-1/2"]
[Annotator "RC"]
[ECO "D27"]
[WhiteElo "2205"]
[BlackElo "2072"]
[PlyCount "71"]
[EventDate "2024.11.23"]
[EventType "team-tourn"]
[EventCountry "ENG"]
[SourceTitle "playchess.com"]
[Source "ChessBase"]
[SourceQuality "1"]
[TimeControl "40/6000+30:3000+30"]

1. d4 {[%emt 0:10:04]} d5 {[%emt 0:10:16]} 2. c4 {[%emt 0:00:10]} dxc4 {[%emt 0:00:22]} 3. Nf3 {[%emt 0:01:13]} Nf6 {[%emt 0:00:40]} 4. e3 {[%emt 0:00:12]} a6 {[%emt 0:03:09]} 5. a4 {[%emt 0:02:18]} e6 {[%emt 0:00:14]} 6. Bxc4 {[%emt 0:00:16]} c5 {[%emt 0:00:40]} 7. O-O {[%emt 0:01:26]} Nc6 {[%emt 0:00:53]} 8. Qe2 {[%emt 0:02:16]} Qc7 {[%emt 0:02:08]} 9. Rd1 {[%emt 0:00:29]} Bd6 {[%emt 0:01:35]} 10. dxc5 {[%emt 0:00:30]} Bxc5 {[%emt 0:00:05]} 11. b3 {[%emt 0:00:22]} O-O {[%emt 0:23:16]} 12. Bb2 {[%emt 0:00:18]} Be7 {[%emt 0:35:52]} 13. Nbd2 {[%emt 0:03:14]} Bd7 {[%emt 0:03:06]} 14. Rac1 {[%emt 0:00:10]} Rad8 {[%emt 0:03:08]} 15. Bd3 {[%emt 0:05:48]} Qb8 {[%emt 0:01:26]} 16. Nc4 {[%emt 0:07:37]} Nb4 {[%emt 0:02:25]} 17. Be5 {[%emt 0:10:13]} Qa7 {[%emt 0:00:53]} 18. Bb1 {[%emt 0:08:28]} Bc6 {[%emt 0:00:55]} 19. Nd4 {[%emt 0:00:16]} Bd5 {[%emt 0:02:25]} 20. a5 {[%emt 0:20:23]} Nc6 {[%emt 0:03:55]} 21. Bc7 {[%emt 0:05:02]} Nxd4 {[%emt 0:01:16]} 22. Rxd4 {[%emt 0:04:05]} Bxc4 {[%emt 0:02:31]} 23. Rdxc4 {[%emt 0:01:26]} Rc8 {[%emt 0:02:13]} 24. Qc2 {[%emt 0:02:16]} Qa8 {[%emt 0:00:36]} 25. Be5 {[%emt 0:07:26]} Rxc4 {[%emt 0:00:26]} 26. bxc4 {[%emt 0:00:05]} g6 {[%emt 0:01:14]} 27. Qb2 {[%emt 0:00:03]} Nd7 {[%emt 0:01:08]} 28. Bd4 {[%emt 0:00:33]} Nc5 {[%emt 0:01:04]} 29. h4 {[%emt 0:02:30]} Qd8 {[%emt 0:03:46]} 30. h5 {[%emt 0:01:03]} Qxa5 {[%emt 0:00:38]} 31. h6 {[%emt 0:00:08]} f6 {[%emt 0:00:16]} 32. Bxc5 {[%emt 0:01:34]} Qxc5 {[%emt 0:03:59]} 33. Qxb7 {[%emt 0:15:06]} a5 {[%emt 0:00:00]} 34. Rd1 {[%emt 0:00:00]} Kf7 {[%emt 0:00:00]} 35. Qa6 {[%emt 0:00:00]} Rc8 {[%emt 0:00:00]} 36. Bd3 {[%emt 0:00:00]} 1/2-1/2

[Event "4NCL Div 2 2024-25"]
[Site "England"]
[Date "2024.11.24"]
[Round "2.4"]
[White "Pozimski, Szymon"]
[Black "Pitcher, John"]
[Result "0-1"]
[Annotator "RC"]
[ECO "A30"]
[WhiteElo "2003"]
[BlackElo "2147"]
[PlyCount "112"]
[EventDate "2024.11.23"]
[EventType "team-tourn"]
[EventCountry "ENG"]
[SourceTitle "playchess.com"]
[Source "ChessBase"]
[SourceQuality "1"]
[TimeControl "40/6000+30:3000+30"]

1. c4 {[%emt 0:12:42]} c5 {[%emt 0:10:34]} 2. Nf3 {[%emt 0:00:05]} Nf6 {[%emt 0:00:07]} 3. g3 {[%emt 0:00:05]} b6 {[%emt 0:00:21]} 4. Bg2 {[%emt 0:00:04]} Bb7 {[%emt 0:00:13]} 5. O-O {[%emt 0:00:16]} e6 {[%emt 0:00:18]} 6. b3 {[%emt 0:00:30]} Be7 {[%emt 0:00:16]} 7. Bb2 {[%emt 0:00:08]} O-O {[%emt 0:00:15]} 8. Nc3 {[%emt 0:00:11]} d6 {[%emt 0:01:53]} 9. d4 {[%emt 0:00:19]} Nbd7 {[%emt 0:03:57]} 10. Rc1 {[%emt 0:06:51]} a6 {[%emt 0:02:52]} 11. Rc2 {[%emt 0:01:32]} Qc7 {[%emt 0:07:08]} 12. Re1 {[%emt 0:06:20]} Ne4 {[%emt 0:08:45]} 13. Qa1 {[%emt 0:21:01]} Bf6 {[%emt 0:06:05]} 14. Nxe4 {[%emt 0:04:46]} Bxe4 {[%emt 0:00:20]} 15. Rd2 {[%emt 0:00:11]} b5 {[%emt 0:15:52]} 16. dxc5 {[%emt 0:18:29]} Bxb2 {[%emt 0:08:00]} 17. Qxb2 {[%emt 0:17:49]} Nxc5 {[%emt 0:04:12]} 18. Qd4 {[%emt 0:01:29]} Rad8 {[%emt 0:02:15]} 19. b4 {[%emt 0:04:54]} Bxf3 {[%emt 0:00:35]} 20. Bxf3 {[%emt 0:00:12]} Na4 {[%emt 0:00:50]} 21. cxb5 {[%emt 0:03:23]} axb5 {[%emt 0:00:09]} 22. Qd3 {[%emt 0:00:26]} Qb8 {[%emt 0:02:30]} 23. Bc6 {[%emt 0:01:46]} Nb6 {[%emt 0:03:11]} 24. Qxb5 {[%emt 0:03:15]} d5 {[%emt 0:00:17]} 25. Qc5 {[%emt 0:01:58]} Nc4 {[%emt 0:02:26]} 26. Rc2 {[%emt 0:00:15]} Rc8 {[%emt 0:00:28]} 27. b5 {[%emt 0:00:11]} h5 {[%emt 0:01:08]} 28. a4 {[%emt 0:01:35]} h4 {[%emt 0:00:22]} 29. Qd4 {[%emt 0:02:04]} h3 {[%emt 0:00:46]} 30. Qg4 {[%emt 0:00:47]} Qa7 {[%emt 0:00:54]} 31. Qxh3 {[%emt 0:00:24]} Qxa4 {[%emt 0:00:26]} 32. Rec1 {[%emt 0:00:07]} Na3 {[%emt 0:01:48]} 33. Ra2 {[%emt 0:02:06]} Qb4 {[%emt 0:02:41]} 34. Rca1 {[%emt 0:00:43]} Nc4 {[%emt 0:04:53]} 35. Qg4 {[%emt 0:00:13]} Qc3 {[%emt 0:03:01]} 36. Qf4 {[%emt 0:00:38]} Ne5 {[%emt 0:01:39]} 37. Qc1 {[%emt 0:00:10]} Qd4 {[%emt 0:00:20]} 38. Ra4 {[%emt 0:00:06]} Qb6 {[%emt 0:00:20]} 39. Ra6 {[%emt 0:00:10]} Qd4 {[%emt 0:00:23]} 40. R6a4 {[%emt 0:00:46]} Qb6 {[%emt 0:00:14]} 41. Ra6 {[%emt 0:29:20]} Qd4 {[%emt 0:24:17]} 42. R1a4 {[%emt 0:05:55]} Nc4 {[%emt 0:00:34]} 43. Qa1 {[%emt 0:00:38]} Qe4 {[%emt 0:05:40]} 44. Qa2 {[%emt 0:03:01]} Rfd8 {[%emt 0:06:34]} 45. Ra8 {[%emt 0:04:32]} Qd4 {[%emt 0:02:07]} 46. Rxc8 {[%emt 0:02:06]} Rxc8 {[%emt 0:00:09]} 47. Rb4 {[%emt 0:01:33]} Qd1+ {[%emt 0:04:37]} 48. Kg2 {[%emt 0:00:06]} Nd2 {[%emt 0:01:17]} 49. Kh3 {[%emt 0:04:39]} Qf1+ {[%emt 0:01:06]} 50. Kh4 {[%emt 0:00:07]} Qxe2 {[%emt 0:02:21]} 51. Qa7 {[%emt 0:02:56]} Nf3+ {[%emt 0:04:11]} 52. Kh3 {[%emt 0:00:18]} Qf1+ {[%emt 0:01:03]} 53. Kg4 {[%emt 0:00:05]} Ne5+ {[%emt 0:00:20]} 54. Kh4 {[%emt 0:01:27]} Qg2 {[%emt 0:03:37]} 55. h3 {[%emt 0:00:39]} Qf3 {[%emt 0:01:06]} 56. Qe3 {[%emt 0:01:37]} Ng6+ {[%emt 0:01:05]} 0-1

[Event "4NCL Div 2 2024-25"]
[Site "England"]
[Date "2024.11.24"]
[Round "2.5"]
[White "Dicen, Elis Denele"]
[Black "Hariharan, Shambavi"]
[Result "1-0"]
[Annotator "RC"]
[ECO "E30"]
[WhiteElo "2100"]
[BlackElo "1940"]
[PlyCount "57"]
[EventDate "2024.11.23"]
[EventType "team-tourn"]
[EventCountry "ENG"]
[SourceTitle "playchess.com"]
[Source "ChessBase"]
[SourceQuality "1"]
[TimeControl "40/6000+30:3000+30"]

1. d4 {[%emt 0:10:03]} Nf6 {[%emt 1:41:00]} 2. c4 {[%emt 0:00:07]} e6 {[%emt 0:00:00]} 3. Nc3 {[%emt 0:00:08]} d5 {[%emt 0:00:00]} 4. cxd5 {[%emt 0:00:11]} exd5 {[%emt 0:00:00]} 5. Bg5 {[%emt 0:00:06]} Bb4 {[%emt 0:00:00]} 6. e3 {[%emt 0:00:37]} h6 {[%emt 0:00:00]} 7. Bh4 {[%emt 0:01:23]} c5 {[%emt 0:00:00]} 8. dxc5 {[%emt 0:04:53]} Nc6 {[%emt 0:00:00]} 9. Nf3 {[%emt 0:07:38]} g5 {[%emt 0:00:00]} 10. Bg3 {[%emt 0:01:12]} Ne4 {[%emt 0:00:00]} 11. Rc1 {[%emt 0:16:49]} Qa5 {[%emt 0:00:00]} 12. Qb3 {[%emt 0:12:04]} Nxc5 {[%emt 0:00:00]} 13. Qc2 {[%emt 0:01:36]} Qxa2 {[%emt 0:00:00]} 14. Bb5 {[%emt 0:05:49]} a6 {[%emt 0:00:00]} 15. Bxc6+ {[%emt 0:02:58]} bxc6 {[%emt 0:00:00]} 16. Be5 {[%emt 0:02:15]} Rg8 {[%emt 0:00:00]} 17. O-O {[%emt 0:04:37]} Qa5 {[%emt 0:00:00]} 18. e4 {[%emt 0:07:59]} Bxc3 {[%emt 0:00:00]} 19. Bxc3 {[%emt 0:02:02]} Qa4 {[%emt 0:00:00]} 20. b3 {[%emt 0:09:00]} Qxb3 {[%emt 0:01:23]} 21. Qe2 {[%emt 0:02:54]} Qc4 {[%emt 0:02:06]} 22. Qe3 {[%emt 0:01:41]} Be6 {[%emt 0:02:36]} 23. Nd2 {[%emt 0:04:33]} Qb5 {[%emt 0:02:47]} 24. Rb1 {[%emt 0:00:39]} d4 {[%emt 0:01:44]} 25. Bxd4 {[%emt 0:01:00]} Nb3 {[%emt 0:00:36]} 26. Nxb3 {[%emt 0:00:13]} Rd8 {[%emt 0:00:32]} 27. Bf6 {[%emt 0:02:05]} Rc8 {[%emt 0:00:23]} 28. Qa7 {[%emt 0:00:21]} Bd7 {[%emt 0:00:34]} 29. Nc5 {[%emt 0:00:12]} 1-0

[Event "4NCL Div 2 2024-25"]
[Site "England"]
[Date "2024.11.24"]
[Round "2.6"]
[White "Udovenko, Daniel"]
[Black "Lam, Paul G M"]
[Result "1/2-1/2"]
[Annotator "RC"]
[ECO "A40"]
[WhiteElo "1941"]
[BlackElo "2115"]
[PlyCount "61"]
[EventDate "2024.11.23"]
[EventType "team-tourn"]
[EventCountry "ENG"]
[SourceTitle "playchess.com"]
[Source "ChessBase"]
[SourceQuality "1"]
[TimeControl "40/6000+30:3000+30"]

1. d4 {[%emt 0:10:02]} Nc6 {[%emt 0:13:36]} 2. d5 {[%emt 0:00:20]} Ne5 {[%emt 0:00:03]} 3. f4 {[%emt 0:00:06]} Ng6 {[%emt 0:00:05]} 4. e4 {[%emt 0:00:04]} e6 {[%emt 0:00:08]} 5. dxe6 {[%emt 0:00:11]} dxe6 {[%emt 0:01:07]} 6. Qxd8+ {[%emt 0:00:06]} Kxd8 {[%emt 0:00:05]} 7. Nc3 {[%emt 0:11:54]} a6 {[%emt 0:02:47]} 8. Bd2 {[%emt 0:06:45]} Bd7 {[%emt 0:14:32]} 9. a3 {[%emt 0:13:58]} Bc5 {[%emt 0:05:35]} 10. O-O-O {[%emt 0:05:15]} Nf6 {[%emt 0:03:01]} 11. Nh3 {[%emt 0:10:57]} Ke7 {[%emt 0:08:27]} 12. g3 {[%emt 0:03:16]} Ng4 {[%emt 0:13:38]} 13. Bg2 {[%emt 0:04:17]} Ne3 {[%emt 0:07:07]} 14. Bxe3 {[%emt 0:01:55]} Bxe3+ {[%emt 0:00:14]} 15. Kb1 {[%emt 0:00:06]} Rhd8 {[%emt 0:03:36]} 16. e5 {[%emt 0:09:58]} Rab8 {[%emt 0:00:42]} 17. Rd3 {[%emt 0:03:37]} Ba7 {[%emt 0:00:33]} 18. Rhd1 {[%emt 0:00:43]} Ke8 {[%emt 0:06:58]} 19. Ng5 {[%emt 0:03:31]} Nf8 {[%emt 0:02:43]} 20. Be4 {[%emt 0:04:40]} h6 {[%emt 0:02:39]} 21. Nf3 {[%emt 0:02:57]} Bc5 {[%emt 0:13:33]} 22. g4 {[%emt 0:03:46]} Be7 {[%emt 0:02:12]} 23. Re1 {[%emt 0:13:36]} c5 {[%emt 0:03:13]} 24. f5 {[%emt 0:00:00]} b5 {[%emt 0:00:27]} 25. h4 {[%emt 0:00:00]} b4 {[%emt 0:00:17]} 26. Na2 {[%emt 0:00:00]} c4 {[%emt 0:00:29]} 27. Rd4 {[%emt 0:00:00]} bxa3 {[%emt 0:00:24]} 28. Rxc4 {[%emt 0:00:00]} Rxb2+ {[%emt 0:00:16]} 29. Ka1 {[%emt 0:00:00]} Bb5 {[%emt 0:01:43]} 30. Rc3 {[%emt 0:00:00]} Nd7 {[%emt 0:00:50]} 31. fxe6 {[%emt 0:00:00]} 1/2-1/2

[Event "4NCL Div 2 2024-25"]
[Site "England"]
[Date "2024.11.24"]
[Round "2.7"]
[White "Fallowfield, Jeremy R"]
[Black "Day, Thomas W"]
[Result "1-0"]
[Annotator "NA RC"]
[ECO "D35"]
[WhiteElo "2072"]
[BlackElo "1976"]
[PlyCount "49"]
[EventDate "2024.11.23"]
[EventType "team-tourn"]
[EventCountry "ENG"]
[SourceTitle "playchess.com"]
[Source "ChessBase"]
[SourceQuality "1"]
[TimeControl "40/6000+30:3000+30"]

1. d4 {[%emt 0:10:06]} d5 {[%emt 0:10:15]} 2. c4 {[%emt 0:00:12]} e6 {[%emt 0:00:03]} 3. Nc3 {[%emt 0:00:08]} Nf6 {[%emt 0:00:07]} 4. cxd5 {[%emt 0:00:15]} exd5 {[%emt 0:00:07]} 5. Bg5 {[%emt 0:00:12]} Be7 {[%emt 0:01:54]} 6. e3 {[%emt 0:00:13]} O-O {[%emt 0:00:08]} 7. Bd3 {[%emt 0:00:10]} Re8 {[%emt 0:00:26]} 8. Nge2 {[%emt 0:04:10]} h6 {[%emt 0:09:28]} 9. Bh4 {[%emt 0:01:49]} Nc6 {[%emt 0:03:26]} 10. O-O {[%emt 0:10:30]} Nb4 {[%emt 0:13:42]} 11. Bb1 {[%emt 0:01:29]} Ne4 {[%emt 0:09:23]} 12. Bxe7 {[%emt 0:01:39]} Rxe7 {[%emt 0:01:30]} 13. a3 {[%emt 0:03:02]} Nxc3 {[%emt 0:01:02]} 14. bxc3 {[%emt 0:15:18]} Na6 {[%emt 0:00:22]} 15. Bd3 {[%emt 0:05:38]} Re6 {[%emt 0:02:52]} 16. Nf4 {[%emt 0:02:54]} Rd6 {[%emt 0:02:56]} 17. f3 {[%emt 0:05:23]} Qh4 {[%emt 0:01:41]} 18. Qd2 {[%emt 0:02:47]} Be6 {[%emt 0:06:17]} 19. e4 {[%emt 0:02:28]} dxe4 {[%emt 0:00:37]} 20. fxe4 {[%emt 0:00:11]} Rad8 {[%emt 0:04:12]} 21. e5 {[%emt 0:06:22]} Rb6 {[%emt 0:00:11]} 22. Nxe6 {[%emt 0:03:16]} Rxe6 {[%emt 0:03:42]} 23. Rf4 {[%emt 0:03:14]} Qg5 {[%emt 0:00:33]} 24. Qf2 {[%emt 0:01:05]} Re7 {[%emt 0:06:20]} 25. h4 {[%emt 0:00:49]} 1-0

[Event "4NCL Div 2 2024-25"]
[Site "England"]
[Date "2024.11.24"]
[Round "2.8"]
[White "Murawski, Jan"]
[Black "Fellowes, Billy"]
[Result "0-1"]
[Annotator "NA RC"]
[ECO "E87"]
[WhiteElo "2065"]
[BlackElo "2055"]
[PlyCount "140"]
[EventDate "2024.11.23"]
[EventType "team-tourn"]
[EventCountry "ENG"]
[SourceTitle "playchess.com"]
[Source "ChessBase"]
[SourceQuality "1"]
[TimeControl "40/6000+30:3000+30"]

1. d4 {[%emt 0:10:03]} Nf6 {[%emt 0:10:06]} 2. c4 {[%emt 0:00:01]} g6 {[%emt 0:00:07]} 3. Nc3 {[%emt 0:00:03]} Bg7 {[%emt 0:00:06]} 4. e4 {[%emt 0:00:02]} d6 {[%emt 0:00:07]} 5. f3 {[%emt 0:00:02]} O-O {[%emt 0:00:26]} 6. Be3 {[%emt 0:00:03]} e5 {[%emt 0:00:26]} 7. d5 {[%emt 0:00:55]} Nh5 {[%emt 0:09:18]} 8. Qd2 {[%emt 0:02:22]} Nd7 {[%emt 0:07:49]} 9. Nh3 {[%emt 0:16:01]} a5 {[%emt 0:14:37]} 10. g4 {[%emt 0:04:54]} Nf4 {[%emt 0:00:06]} 11. Nxf4 {[%emt 0:00:25]} exf4 {[%emt 0:00:06]} 12. Bxf4 {[%emt 0:01:26]} Ne5 {[%emt 0:00:15]} 13. Be2 {[%emt 0:05:57]} a4 {[%emt 1:03:31]} 14. a3 {[%emt 0:07:00]} b6 {[%emt 0:00:00]} 15. Bg5 {[%emt 0:15:34]} Bf6 {[%emt 0:00:00]} 16. h4 {[%emt 0:06:09]} Ba6 {[%emt 0:00:00]} 17. Nb5 {[%emt 0:01:05]} Bxb5 {[%emt 0:00:00]} 18. cxb5 {[%emt 0:00:43]} Nd7 {[%emt 0:00:00]} 19. Kf2 {[%emt 0:11:41]} Nc5 {[%emt 0:00:00]} 20. Rad1 {[%emt 0:01:09]} Be7 {[%emt 0:00:00]} 21. Kg2 {[%emt 0:03:54]} f6 {[%emt 0:00:00]} 22. Be3 {[%emt 0:01:56]} Qe8 {[%emt 0:00:00]} 23. Bd3 {[%emt 0:01:46]} Ra5 {[%emt 0:00:00]} 24. Bc4 {[%emt 0:04:26]} Nd7 {[%emt 0:00:00]} 25. Rc1 {[%emt 0:03:22]} Ra7 {[%emt 0:00:00]} 26. Bd3 {[%emt 0:03:16]} Nc5 {[%emt 0:00:00]} 27. Bc2 {[%emt 0:00:52]} Qxb5 {[%emt 0:00:00]} 28. Bxc5 {[%emt 0:01:14]} bxc5 {[%emt 0:00:00]} 29. Bd3 {[%emt 0:00:26]} Qd7 {[%emt 0:00:00]} 30. Qf4 {[%emt 0:01:38]} Rb7 {[%emt 0:00:00]} 31. Rc2 {[%emt 0:00:52]} Rfb8 {[%emt 0:00:00]} 32. h5 {[%emt 0:02:01]} g5 {[%emt 0:00:00]} 33. Qd2 {[%emt 0:00:06]} Bf8 {[%emt 0:00:00]} 34. Re1 {[%emt 0:01:28]} Bh6 {[%emt 0:00:00]} 35. Re2 {[%emt 0:01:53]} Qe8 {[%emt 0:00:00]} 36. e5 {[%emt 0:00:39]} fxe5 {[%emt 0:00:00]} 37. Bf5 {[%emt 0:00:29]} Ra7 {[%emt 0:01:59]} 38. Qd3 {[%emt 0:01:10]} Qe7 {[%emt 0:00:14]} 39. Qe4 {[%emt 0:01:05]} Kh8 {[%emt 0:01:54]} 40. Rc4 {[%emt 0:00:53]} Rba8 {[%emt 0:01:49]} 41. Qc2 {[%emt 0:23:05]} Qf7 {[%emt 0:20:23]} 42. Qd3 {[%emt 0:02:54]} Rb8 {[%emt 0:02:43]} 43. Be6 {[%emt 0:02:17]} Qe8 {[%emt 0:06:27]} 44. Qc2 {[%emt 0:03:24]} Ra6 {[%emt 0:08:41]} 45. Bf5 {[%emt 0:04:29]} Qf7 {[%emt 0:00:34]} 46. Rxa4 {[%emt 0:01:26]} Rxa4 {[%emt 0:02:46]} 47. Qxa4 {[%emt 0:00:14]} Bf8 {[%emt 0:08:31]} 48. Rd2 {[%emt 0:04:49]} Qg7 {[%emt 0:03:19]} 49. Qe4 {[%emt 0:01:44]} Rb3 {[%emt 0:00:39]} 50. Re2 {[%emt 0:01:21]} Qf7 {[%emt 0:00:45]} 51. Qc4 {[%emt 0:02:07]} Rb6 {[%emt 0:00:51]} 52. b3 {[%emt 0:05:01]} Kg7 {[%emt 0:01:34]} 53. Rc2 {[%emt 0:01:06]} c6 {[%emt 0:01:02]} 54. dxc6 {[%emt 0:01:49]} d5 {[%emt 0:03:50]} 55. Qa4 {[%emt 0:01:27]} Bd6 {[%emt 0:00:35]} 56. h6+ {[%emt 0:01:41]} Kxh6 {[%emt 0:00:20]} 57. Rc1 {[%emt 0:00:28]} Kg7 {[%emt 0:00:39]} 58. Bd7 {[%emt 0:00:33]} e4 {[%emt 0:00:26]} 59. Bf5 {[%emt 0:00:18]} exf3+ {[%emt 0:00:45]} 60. Kxf3 {[%emt 0:00:25]} d4 {[%emt 0:00:08]} 61. Qc4 {[%emt 0:00:40]} Rxb3+ {[%emt 0:00:10]} 62. Kg2 {[%emt 0:00:22]} Rg3+ {[%emt 0:00:49]} 63. Kf2 {[%emt 0:00:27]} Qe8 {[%emt 0:00:45]} 64. Qe6 {[%emt 0:00:50]} Qxc6 {[%emt 0:00:13]} 65. Be4 {[%emt 0:00:00]} Re3 {[%emt 0:01:51]} 66. Bxc6 {[%emt 0:01:00]} Rxe6 {[%emt 0:00:04]} 67. a4 {[%emt 0:00:28]} d3 {[%emt 0:01:13]} 68. a5 {[%emt 0:00:31]} Bf4 {[%emt 0:00:38]} 69. Bd5 {[%emt 0:00:32]} Re2+ {[%emt 0:00:02]} 70. Kf3 {[%emt 0:00:23]} Bxc1 {[%emt 0:00:07]} 0-1